Cogmind - Beta 13 @@@ ROGUE MODE // 2024.04.06 @ 20:50:34 Player: demon Result: Destroyed by Y-45 Defender with Heavy Assault Rifle Performance ------------- Evolutions (1) 500 Regions Visited (2) 400 Robots Destroyed (27) 135 Value Destroyed (740) 740 Prototype IDs (0) 0 Alien Tech Used (0) 0 Bonus (0) 0 TOTAL SCORE: 1775 Bonus ------- None Cogmind --------- Core Integrity 0/400 Matter 180/500 Energy 100/100 System Corruption 0% Temperature Cool (9) Movement Core (200) Ox3 Location -9/Materials Parts ------- > --- POWER (1) -------- (None) > --- PROPULSION (2) --- (None) > --- UTILITY (3) ------ Small Storage Unit High-capacity Matter Pod > --- WEAPON (3) ------- Flail > --- INVENTORY (8) ---- Ion Engine Light Ion Engine Compact Wheel Compact Wheel Visual Processing Unit Improved Targeting Computer Peak State ------------ > --- POWER ------------ Ion Engine > --- PROPULSION ------- Compact Wheel Compact Wheel > --- UTILITY ---------- Heat Sink Small Storage Unit High-capacity Matter Pod > --- WEAPON ----------- Small Laser Shotgun Rocket Launcher > --- INVENTORY -------- Ion Engine Light Ion Engine Compact Wheel Compact Wheel Compact Wheel Visual Processing Unit [Rating: 11] Favorites ----------- Power Ion Engine Engine Ion Engine Propulsion Compact Wheel Wheel Compact Wheel Utility Small Storage Unit Device Heat Sink Storage Small Storage Unit Weapon Assault Rifle Energy Gun Small Laser Ballistic Gun Assault Rifle Launcher Grenade Launcher Impact Weapon Flail Build | -11 -10 -9 ------- Run | Yrd Mat Mat Slots Evolved 2 | . . 2 Power . | . . . Propulsion . | . . . Utility 1 | . . 1 Weapon 1 | . . 1 Parts Attached 26 | 6 12 8 Power 1 | 1 . . Engine 1 | 1 . . Core . | . . . Reactor . | . . . Propulsion 7 | 2 4 1 Treads . | . . . Leg . | . . . Wheel 7 | 2 4 1 Hover . | . . . Flight . | . . . Utility 4 | 1 1 2 Device 2 | . . 2 Storage 2 | 1 1 . Processor . | . . . Hackware . | . . . Protection . | . . . Artifact . | . . . Weapon 14 | 2 7 5 Energy Gun 3 | . 3 . Energy Cannon . | . . . Ballistic Gun 5 | 2 2 1 Ballistic Cannon . | . . . Launcher 5 | . 2 3 Special Weapon . | . . . Impact Weapon 1 | . . 1 Slashing Weapon . | . . . Piercing Weapon . | . . . Special Melee Weapon . | . . . Unidentified Prototypes . | . . . Parts Lost 14 | . 5 9 Power 1 | . . 1 Propulsion 5 | . 2 3 Utility 2 | . . 2 Weapon 6 | . 3 3 Highest Loss Streak 4 | . 4 4 To Critical Strikes . | . . . Average Slot Usage (%) 88 | . 97 73 Engine 11 | . 14 6 Wheel 23 | . 27 16 Device 3 | . . 9 Storage 25 | . 27 22 Energy Gun 8 | . 11 5 Ballistic Gun 8 | . 9 6 Launcher 5 | . 6 5 Naked Turns . | . . . Heaviest Build 23 | 13 19 23 Greatest Support 32 | 26 32 32 Greatest Overweight (x) 3 | . 1 3 Average Overweight (x) . | . . . Largest Inventory Capacity 8 | 8 8 8 Average Capacity 7 | 6 8 8 Most Carried 8 | 5 8 8 Average Carried 4 | 2 4 6 Final Capacity 8 | 8 8 8 Final Carried 8 | 2 8 6 Class Distribution -------------------- 83% | Mutant 16% | Gunner Dominant Class ---------------- Mutant | -10/Materials Mutant | -9/Materials Resources | -11 -10 -9 ----------- Run | Yrd Mat Mat Matter Collected 554 | 252 231 71 Remotely . | . . . Salvage Created 580 | . 231 349 Parts 41 | . 23 18 Haulers Intercepted . | . . . Recyclers Shooed . | . . . Parts Field Recycled . | . . . Retrieved Matter . | . . . Parts Self-Destructed . | . . . Prevented . | . . . Kills | -11 -10 -9 ------- Run | Yrd Mat Mat Combat Hostiles Destroyed 19 | . 6 13 Melee 1 | . . 1 Guns 7 | . 6 1 AOE 8 | . . 8 Classes Destroyed 8 | . 5 3 Worker 1 | . 1 . Builder 2 | . 1 1 Tunneler 1 | . . 1 Watcher 4 | . 2 2 Swarmer 3 | . 3 . Grunt 13 | . 3 10 Duelist 1 | . . 1 Sentry 2 | . . 2 Best Kill Streak 5 | . 3 5 Combat Bots Only 4 | . 3 4 Max Kills in Single Turn 3 | . 2 3 Gunslinging . | . . . Exploded 2 | . . 2 Melee 1 | . . 1 Uniques/NPCs Destroyed . | . . . Combat | -11 -10 -9 -------- Run | Yrd Mat Mat Hostile Shots Fired 171 | . 73 98 Missed 46 | . 21 25 Damage Taken 1675 | . 669 1006 Core 602 | . 198 404 Absorbed by Shields . | . . . Core Remaining (%) 60 | 100 20 . Volleys Fired 53 | . 35 18 Largest 2 | . 2 2 Hottest 90 | . 90 56 Shots Fired 69 | . 48 21 Gun 51 | . 46 5 Cannon . | . . . Launcher 18 | . 2 16 Special . | . . . Kinetic 31 | . 26 5 Thermal 20 | . 20 . Explosive 18 | . 2 16 Electromagnetic . | . . . Robot Hit Streak 10 | . 10 5 Robot Miss Streak 4 | . 4 2 Penetration Max . | . . . Secondary Targets 1 | . 1 . Max Gunslinging Chain 1 | . 1 . Shots Hit Robots 43 | . 23 20 Core Hits 41 | . 14 27 Critical Kills 1 | . . 1 Critical Parts Destroyed 5 | . . 5 Critical Strikes 6 | . . 6 Smash 6 | . . 6 Melee Attacks 11 | . . 11 Impact 11 | . . 11 Slashing . | . . . Piercing . | . . . Sneak Attacks . | . . . Combat Hostiles . | . . . Follow-up Attacks . | . . . Damage Inflicted 1867 | . 357 1510 Guns 328 | . 289 39 Cannons . | . . . Explosions 1234 | . 68 1166 Melee 305 | . . 305 Ramming . | . . . Kinetic 164 | . 125 39 Thermal 164 | . 164 . Explosive 1234 | . 68 1166 Electromagnetic . | . . . Impact 305 | . . 305 Slashing . | . . . Piercing . | . . . Highest Corruption . | . . . Average Corruption . | . . . Corruption Purged . | . . . Corruption Blocked . | . . . Overload Shots . | . . . Overflow Damage 214 | . . 214 Projectiles . | . . . Explosions 19 | . . 19 Melee 195 | . . 195 Knockbacks 1 | . . 1 Impact 1 | . . 1 Kinetic . | . . . Secondary . | . . . Self-Inflicted Damage 51 | . . 51 Shots 2 | . . 2 Rammed . | . . . Targets Rammed . | . . . Kicked . | . . . Crushed . | . . . Highest Temperature 234 | . 234 . Average Temperature 84 | . 84 . Received Heat Transfer 510 | . 96 414 Siege Activations . | . . . Robots Corrupted . | . . . Combat Hostiles . | . . . Parts Fried . | . . . Impact Corruptions 6 | . . 6 Robots Melted . | . . . Combat Hostiles . | . . . Parts Melted 1 | . 1 . Heat Transferred 446 | . 446 . Parts Sabotaged . | . . . Parts Stolen . | . . . Parts Stripped . | . . . Power Chain Reactions . | . . . Alert | -11 -10 -9 ------- Run | Yrd Mat Mat Peak Influence 383 | . 158 383 Initial . | . . . Average 102 | . 58 192 Maximum Alert Level 1 | . . 1 Low Security (%) 78 | 100 100 39 Level 1 21 | . . 60 Level 2 . | . . . Level 3 . | . . . Level 4 . | . . . Level 5 . | . . . High Security . | . . . Max Security . | . . . Squads Dispatched 1 | . 1 . Investigation . | . . . Extermination . | . . . Reinforcement 1 | . 1 . Assault . | . . . Garrison . | . . . Intercept . | . . . Searches Triggered . | . . . Construction Impeded . | . . . Haulers Reinforced . | . . . Active Scanning Responses . | . . . Cargo Convoy Interrupts . | . . . Stealth | -11 -10 -9 --------- Run | Yrd Mat Mat Distress Signals 1 | . . 1 Communications Jammed . | . . . Distress Signals . | . . . Times Spotted 32 | . 14 18 Peak Tracking Total 7 | . 5 7 Tactical Retreats . | . . . Traps | -11 -10 -9 ------- Run | Yrd Mat Mat Traps Triggered . | . . . Indirectly . | . . . Trap Hack Attempts . | . . . Triggered . | . . . Disarmed . | . . . Reprogrammed . | . . . Reused . | . . . Traps Extracted . | . . . Installed . | . . . Triggered . | . . . Machines | -11 -10 -9 ---------- Run | Yrd Mat Mat Machines Disabled 1 | . 1 . Max in Single Turn 1 | . 1 . Machines Repaired . | . . . Machines Dismantled . | . . . Machines Sabotaged . | . . . Overloaded Fab Kills . | . . . Hacking | -11 -10 -9 --------- Run | Yrd Mat Mat Machines Accessed 3 | . 1 2 Terminals 1 | . 1 . Fabricators . | . . . Repair Stations 1 | . . 1 Recycling Units . | . . . Scanalyzers 1 | . . 1 Garrison Access . | . . . Total Hacks 10 | . 5 5 Successful 4 | . 1 3 Failed 6 | . 4 2 Catastrophic 1 | . 1 . Database Lockouts . | . . . Manual . | . . . Terminals 5 | . 5 . Fabricators . | . . . Repair Stations 2 | . . 2 Recycling Units . | . . . Scanalyzers 3 | . . 3 Garrison Access . | . . . Terminal Hacks 1 | . 1 . Alert Level 1 | . 1 . Fabricator Hacks . | . . . Repair Station Hacks 1 | . . 1 Scan Component 1 | . . 1 Recycling Unit Hacks . | . . . Scanalyzer 2 | . . 2 Insert Component 1 | . . 1 Analyze 1 | . . 1 Garrison Access Hacks . | . . . Unauthorized Hacks . | . . . Terminals . | . . . Fabricators . | . . . Repair Stations . | . . . Recycling Units . | . . . Scanalyzers . | . . . Garrison Access . | . . . Data Cores Recovered . | . . . Used . | . . . Hacking Detections 2 | . 1 1 Full Trace Events 1 | . 1 . Feedback Events . | . . . Feedback Blocked . | . . . Robot Schematics Acquired . | . . . Robots Built . | . . . Authchips . | . . . Time . | . . . Total Robot Build Rating . | . . . Part Schematics Acquired 1 | . . 1 Parts Built . | . . . Authchips . | . . . Time . | . . . Total Part Build Rating . | . . . Parts Repaired . | . . . Time . | . . . Parts Recycled . | . . . Recycled Matter . | . . . Retrieved Matter . | . . . Retrieved Components . | . . . Parts Scanalyzed 1 | . . 1 Part Schematics Acquired 1 | . . 1 Parts Damaged . | . . . Bothacking | -11 -10 -9 ------------ Run | Yrd Mat Mat Used RIF Installer . | . . . Robots Hacked . | . . . Non-combat . | . . . Combat . | . . . Robot Hacks Applied . | . . . Relay Couplers Released . | . . . Fabnet Peak Effective % . | . . . Robots Rewired . | . . . Allies Hacked . | . . . Hacks Repelled . | . . . Allies | -11 -10 -9 -------- Run | Yrd Mat Mat Total Allies . | . . . Largest Group . | . . . Highest-Rated Group . | . . . Highest-Rated Ally . | . . . Total Orders . | . . . Ally Attacks . | . . . Total Damage . | . . . Kills . | . . . Allies Corrupted . | . . . Allies Melted . | . . . Intel | -11 -10 -9 ------- Run | Yrd Mat Mat Robot Analysis Total . | . . . Derelict Logs Recovered . | . . . Drone Launches . | . . . Drone Recoveries . | . . . Exploration | -11 -10 -9 ------------- Run | Yrd Mat Mat Turns Passed 733 | 56 416 261 Spaces Moved 553 | 49 332 172 Core 5 | 4 . 1 Treads . | . . . Legs . | . . . Wheels 548 | 45 332 171 Hover . | . . . Flight . | . . . Fastest Speed 50 | 50 80 100 Average Speed 91 | 86 86 102 Slowest Speed 200 | 90 115 200 Overloaded Moves . | . . . Propulsion Burnouts . | . . . Robots Hopped . | . . . Cave-ins Triggered . | . . . Exploration Rate (%) 21 | 3 45 17 Regions Visited 2 Branch Regions . Pre-discovered Areas . | . . . Known Exits Taken . | . . . Unknown Exits Taken 2 | 1 1 . Scrap Searched . | . . . Spaces Dug . | . . . Terrain Destroyed 93 | . 13 80 Melee . | . . . Projectile . | . . . AOE 93 | . 13 80 Terrain Rammed . | . . . Walls Destroyed . | . . . Machines Disabled . | . . . Actions | -11 -10 -9 --------- Run | Yrd Mat Mat Total 696 | 62 414 220 Wait 21 | . 17 4 Move 551 | 48 331 172 Hop . | . . . Pick Up 28 | 8 15 5 Fast Attach . | . . . Attach 22 | 6 9 7 Detach 1 | . 1 . Swap 4 | . 3 1 Drop 5 | . 3 2 Fire 53 | . 35 18 Melee 11 | . . 11 Ram . | . . . Kick . | . . . Crush . | . . . Escape Stasis . | . . . Rewire . | . . . Trap . | . . . Miscellaneous . | . . . Route ------- -11/Scrapyard -10/Materials -9/Materials History --------- Turn | Location | Event 21 | -11/Scrapyard | Discovered new exit (range 16) 57 | -11/Scrapyard | Entered Materials 299 | -10/Materials | Core integrity fell below 50% 310 | -10/Materials | Discovered new exit (range 13) 329 | -10/Materials | Lost 4 parts (2n2w) 341 | -10/Materials | Build established: Mutant 473 | -10/Materials | Entered another Materials area 473 | -9/Materials | Evolved 2 slots: Utility x1, Weapon x1 686 | -9/Materials | Lost 4 parts (1p1u2w) 710 | -9/Materials | Core integrity fell below 50% 726 | -9/Materials | Core integrity fell below 20% 734 | -9/Materials | Destroyed by Y-45 Defender with Heavy Assault Rifle Last Messages --------------- Sensor Array destroyed. Y-45 Defender suffers critical hit (Smash). Destroyed Imp. Ion Engine. Y-45 Defender system corrupted by crushing effect. Com. Wheel destroyed. Y-45 Defender suffers critical hit (Smash). Destroyed Lgt. Treads. Y-45 Defender system corrupted by crushing effect. Y-45 Defender system terminally corrupted. G-34 Mercenary suffers critical hit (Smash). Destroyed Aluminum Leg. G-34 Mercenary system corrupted by crushing effect. G-34 Mercenary suffers critical hit (Smash). G-34 Mercenary destroyed. Destroyed Heat Sink. G-34 Mercenary system corrupted by crushing effect. Map ----- +----------------------------------------------------+ | ???# #???????####??????????????????????? | | ???# """" #??????? ???????????????????????? | | ???# ""S"" #??????? ???????????????????????? | | ####/! "" "" #??????? ???????????????????????? | | #]! #??????? [???????????????????????? | | # !#??????? #???????????????????????? | | # ###????# #???????????????????????? | | ###+######## ##???# +???????????????????????? | | ###?# #???????????????????????? | | #?# #???????????????????????? | | """ ### #???????????????????????? | | ## "R ## #???????????????????????? | | ?# """ """ ## # #???????????????????????? | | ## """ #???###?????????????????? | | """ ##### ####??????????????? | | ###### # T #??????????????? | | # # # """ #??????????????? | | # + # """ #??????????????? | | # # # """ #??????????????? | | ############## # # + #??????????????? | | ???????????## # ## # #??????????????? | | ???????????# # "" ## # ! #??????????????? | | ???????????## # "Y ## # != #??????????????? | | ???########## # "" ##%# != !#??????????????? | | ???# # # ##=##/#######??????????????? | | ???# # # #####%@%Y#????????????????????? | | ???# # ####g##/#????????????????????? | | ???# ## ! #????????????????????? | | ???#= # # ## """ #????????????????????? | | ???# # ## """ #????????????????????? | | ???# # ## """ #????????????????????? | | ???# # #### #????????????????????? | | ???# # #?# #????????????????????? | | ???### ###?########????????????????????? | | ?? ###?????????????????????????????? | | ##??????????????????????????????? | | """ *[ #???????????????????????????????? | | """ """ [ #???????????????????????????????? | | """ """ #???????????????????????????????? | | """ #???????????????????????????????? | | " #???????????????????????????????? | | """ = "%" #???????????????????????????????? | | """ ######### #???????????????????????????????? | | ?"" ????????? #???????????????????????????????? | | ?? ????????? #???????????????????????????????? | | ?? ????????? #???????????????????????????????? | | ?????????????? ????????????????????????????????? | | ?????????????????????????????????????????????????? | | ?????????????????????????????????????????????????? | | ?????????????????????????????????????????????????? | +----------------------------------------------------+ Best States ------------- Heat Dissipation 38 Energy Generation 10 Energy Capacity 250 Matter Stores 360 Matter Capacity 500 Sight Range 16 Robot Scan Range 14 Terrain Scan Density 10 Evasion (%) 44 Item Schematics ----------------- Visual Processing Unit | -9/Materials | Scanalyzed Robot Schematics ------------------ None Fabricated ------------ Nothing Alien Tech Used ----------------- None Achievements -------------- None Challenges ------------ None Game ------ Seed BackupNullClaymores Manual? 0 Play Time 00:14:56 Cumulative 4.0 hours Start 2024.04.06 @ 20:33:12 End 2024.04.06 @ 20:50:34 Sessions 1 Manual Loads 0 Difficulty Rogue Special Mode None Game No. 6 Rogue 6 Adventurer 0 Explorer 0 Win Type - Total 0 Types 0/0/0/0/0/0/0/0/0 Lore% 10 Gallery% 9 Achievement% 8 Wizard Run 0 Options --------- Layout 1 ASCII 0 Keyboard 0 Movement Arrows Keybinds 0 Fullscreen 1 Font 24/Smallcaps Map View 50x35 Zoom Use 0% Tactical HUD 0 Map Filters NONE Filters NONE Steam 1 RUN: b1e69079-d407-48fa-a425-dadd7c15cdb9